Cogmind - Beta 13 @@@ ROGUE MODE // 2024.04.03 @ 22:41:04 Player: Toa of Guts Result: Destroyed by D-53 Grenadier with Mini Grenade Launcher Performance ------------- Evolutions (0) 0 Regions Visited (4) 800 Robots Destroyed (13) 65 Value Destroyed (378) 378 Prototype IDs (3) 60 Alien Tech Used (0) 0 Bonus (300) 300 TOTAL SCORE: 1603 Bonus ------- Aligned with FarCom 300 Cogmind --------- Core Integrity 0/250 Matter 209/300 Energy 100/100 System Corruption 1% Temperature Cool (0) Movement Walking (190) Ox1 Location -9/Mines Parts ------- > --- POWER (1) -------- (None) > --- PROPULSION (2) --- Aluminum Leg Aluminum Leg > --- UTILITY (2) ------ Improved Heat Sink Large Storage Unit > --- WEAPON (2) ------- YOLO Cannon > --- INVENTORY (15) --- Improved Ion Engine Aluminum Leg Aluminum Leg Aluminum Leg Aluminum Leg Heat Sink Heat Sink Experimental Sensor Array Light Armor Plating EM Pulse Gun Small Laser Beam Rifle Assault Rifle Hammer Peak State ------------ > --- POWER ------------ Light Nuclear Core > --- PROPULSION ------- Aluminum Leg Aluminum Leg > --- UTILITY ---------- Improved Heat Sink Large Storage Unit > --- WEAPON ----------- YOLO Cannon > --- INVENTORY -------- Improved Ion Engine Aluminum Leg Aluminum Leg Aluminum Leg Aluminum Leg Heat Sink Experimental Sensor Array Light Armor Plating EM Pulse Gun Small Laser Beam Rifle Assault Rifle Hammer [Rating: 31] Favorites ----------- Power Light Nuclear Core Engine Ion Engine Power Core Light Nuclear Core Propulsion Aluminum Leg Treads Light Treads Leg Aluminum Leg Utility Large Storage Unit Device Improved Heat Sink Storage Large Storage Unit Weapon Small Laser Energy Gun Small Laser Energy Cannon YOLO Cannon Ballistic Gun Light Assault Rifle Build | -11 -10 -10 -10 -9 ------- Run | Yrd Mat Min Exi Min Slots Evolved . | . . . . . Power . | . . . . . Propulsion . | . . . . . Utility . | . . . . . Weapon . | . . . . . Parts Attached 33 | 6 12 11 4 . Power 3 | 1 . 2 . . Engine 2 | 1 . 1 . . Core 1 | . . 1 . . Reactor . | . . . . . Propulsion 14 | 2 8 2 2 . Treads 4 | . 4 . . . Leg 10 | 2 4 2 2 . Wheel . | . . . . . Hover . | . . . . . Flight . | . . . . . Utility 8 | 1 3 4 . . Device 5 | . 1 4 . . Storage 3 | 1 2 . . . Processor . | . . . . . Hackware . | . . . . . Protection . | . . . . . Artifact . | . . . . . Weapon 8 | 2 1 3 2 . Energy Gun 5 | 2 . 3 . . Energy Cannon 2 | . . . 2 . Ballistic Gun 1 | . 1 . . . Ballistic Cannon . | . . . . . Launcher . | . . . . . Special Weapon . | . . . . . Impact Weapon . | . . . . . Slashing Weapon . | . . . . . Piercing Weapon . | . . . . . Special Melee Weapon . | . . . . . Unidentified Prototypes 3 | . . 1 2 . Parts Lost 4 | . 3 . . 1 Power 2 | . 1 . . 1 Propulsion 2 | . 2 . . . Utility . | . . . . . Weapon . | . . . . . Highest Loss Streak 3 | . 3 . . 1 To Critical Strikes . | . . . . . Average Slot Usage (%) 93 | . 95 100 89 85 Engine 5 | . 10 4 . . Core 7 | . . 9 14 14 Treads 7 | . 19 . . . Leg 20 | . 7 28 27 28 Device 11 | . 8 14 14 14 Storage 16 | . 19 14 14 14 Energy Gun 15 | . 19 20 9 . Energy Cannon 3 | . . . 8 14 Ballistic Gun 4 | . 8 7 . . Naked Turns . | . . . . . Heaviest Build 44 | 12 30 30 44 44 Greatest Support 40 | 20 40 20 20 20 Greatest Overweight (x) 2 | 1 1 1 2 2 Average Overweight (x) . | . . 1 1 2 Largest Inventory Capacity 15 | 8 15 15 15 15 Average Capacity 14 | 6 14 15 15 15 Most Carried 15 | 6 15 15 15 14 Average Carried 12 | 4 10 14 13 14 Final Capacity 15 | 8 15 15 15 15 Final Carried 14 | 6 14 14 14 14 Class Distribution -------------------- 50% | Scavenger-Mutant 49% | Mutant Dominant Class ---------------- Mutant | -10/Materials Scavenger-Mutant | -10/Mines Scavenger-Mutant | -10/Exiles Scavenger-Mutant | -9/Mines Resources | -11 -10 -10 -10 -9 ----------- Run | Yrd Mat Min Exi Min Matter Collected 573 | 231 238 90 . 14 Remotely . | . . . . . Salvage Created 476 | . 332 144 . . Parts 27 | . 16 11 . . Haulers Intercepted . | . . . . . Recyclers Shooed . | . . . . . Parts Field Recycled . | . . . . . Retrieved Matter . | . . . . . Parts Self-Destructed . | . . . . . Prevented . | . . . . . Kills | -11 -10 -10 -10 -9 ------- Run | Yrd Mat Min Exi Min Combat Hostiles Destroyed 12 | . 9 3 . . Guns 11 | . 9 2 . . Classes Destroyed 4 | . 3 1 . . Builder 1 | . 1 . . . Swarmer 3 | . 3 . . . Grunt 8 | . 6 2 . . Sentry 1 | . . 1 . . Best Kill Streak 3 | . 3 2 . . Combat Bots Only 3 | . 3 2 . . Max Kills in Single Turn 1 | . 1 1 . . Gunslinging . | . . . . . Exploded . | . . . . . Melee . | . . . . . Uniques/NPCs Destroyed . | . . . . . Combat | -11 -10 -10 -10 -9 -------- Run | Yrd Mat Min Exi Min Hostile Shots Fired 93 | . 74 9 . 10 Missed 25 | . 22 2 . 1 Damage Taken 1050 | . 605 98 . 347 Core 268 | . 150 13 . 105 Absorbed by Shields . | . . . . . Core Remaining (%) 100 | 100 . . . . Volleys Fired 46 | . 37 8 . 1 Largest 2 | . 2 2 . 1 Hottest 100 | . 80 80 . 100 Shots Fired 87 | . 70 16 . 1 Gun 86 | . 70 16 . . Cannon 1 | . . . . 1 Launcher . | . . . . . Special . | . . . . . Kinetic 27 | . 21 6 . . Thermal 60 | . 49 10 . 1 Explosive . | . . . . . Electromagnetic . | . . . . . Robot Hit Streak 22 | . 22 10 . . Robot Miss Streak 3 | . 3 1 . 1 Penetration Max . | . . . . . Secondary Targets 1 | . 1 . . . Max Gunslinging Chain 1 | . 1 . . . Shots Hit Robots 64 | . 52 12 . . Core Hits 25 | . 19 6 . . Critical Kills . | . . . . . Critical Parts Destroyed . | . . . . . Critical Strikes . | . . . . . Melee Attacks . | . . . . . Impact . | . . . . . Slashing . | . . . . . Piercing . | . . . . . Sneak Attacks . | . . . . . Combat Hostiles . | . . . . . Follow-up Attacks . | . . . . . Damage Inflicted 696 | . 535 117 . 44 Guns 652 | . 535 117 . . Cannons . | . . . . . Explosions 44 | . . . . 44 Melee . | . . . . . Ramming . | . . . . . Kinetic 161 | . 120 41 . . Thermal 535 | . 415 76 . 44 Explosive . | . . . . . Electromagnetic . | . . . . . Impact . | . . . . . Slashing . | . . . . . Piercing . | . . . . . Highest Corruption 1 | . 1 1 1 1 Average Corruption 1 | . 1 1 1 1 Corruption Purged . | . . . . . Corruption Blocked . | . . . . . Effects 18 | . 7 4 5 2 Message Errors 3 | . 1 1 1 . Matter Fused 2 | . 1 . . 1 Heat Flow Errors 3 | . 1 . 2 . Energy Discharges 2 | . 1 1 . . Data Loss (minor) 6 | . 3 1 1 1 Data Loss (major) 1 | . . . 1 . Alerts 1 | . . 1 . . Overload Shots . | . . . . . Overflow Damage . | . . . . . Projectiles . | . . . . . Explosions . | . . . . . Melee . | . . . . . Knockbacks . | . . . . . Impact . | . . . . . Kinetic . | . . . . . Secondary . | . . . . . Self-Inflicted Damage . | . . . . . Shots . | . . . . . Rammed . | . . . . . Targets Rammed . | . . . . . Kicked . | . . . . . Crushed . | . . . . . Highest Temperature 219 | . 219 18 95 . Average Temperature 91 | . 98 12 44 . Received Heat Transfer 303 | . 252 51 . . Siege Activations . | . . . . . Robots Corrupted . | . . . . . Combat Hostiles . | . . . . . Parts Fried . | . . . . . Impact Corruptions . | . . . . . Robots Melted 1 | . . 1 . . Combat Hostiles 1 | . . 1 . . Parts Melted 2 | . 2 . . . Heat Transferred 1205 | . 950 175 . 80 Parts Sabotaged . | . . . . . Parts Stolen . | . . . . . Parts Stripped . | . . . . . Power Chain Reactions . | . . . . . Alert | -11 -10 -10 -10 -9 ------- Run | Yrd Mat Min Exi Min Peak Influence 185 | . 185 90 . 15 Initial 5 | . . 5 . . Average 37 | . 41 45 . . Maximum Alert Level . | . . . . . Low Security (%) 100 | 100 100 100 . 100 Level 1 . | . . . . . Level 2 . | . . . . . Level 3 . | . . . . . Level 4 . | . . . . . Level 5 . | . . . . . High Security . | . . . . . Max Security . | . . . . . Squads Dispatched 2 | . 2 . . . Investigation 1 | . 1 . . . Extermination . | . . . . . Reinforcement 1 | . 1 . . . Assault . | . . . . . Garrison . | . . . . . Intercept . | . . . . . Searches Triggered . | . . . . . Construction Impeded . | . . . . . Haulers Reinforced . | . . . . . Active Scanning Responses . | . . . . . Cargo Convoy Interrupts . | . . . . . Stealth | -11 -10 -10 -10 -9 --------- Run | Yrd Mat Min Exi Min Distress Signals 1 | . 1 . . . Communications Jammed . | . . . . . Distress Signals . | . . . . . Times Spotted 25 | . 19 4 . 2 Peak Tracking Total 6 | . 6 2 . 2 Tactical Retreats 3 | . 3 . . . Traps | -11 -10 -10 -10 -9 ------- Run | Yrd Mat Min Exi Min Traps Triggered 2 | . 2 . . . Indirectly . | . . . . . Trap Hack Attempts . | . . . . . Triggered . | . . . . . Disarmed . | . . . . . Reprogrammed . | . . . . . Reused . | . . . . . Traps Extracted . | . . . . . Installed . | . . . . . Triggered . | . . . . . Machines | -11 -10 -10 -10 -9 ---------- Run | Yrd Mat Min Exi Min Machines Disabled . | . . . . . Max in Single Turn . | . . . . . Machines Repaired . | . . . . . Machines Dismantled . | . . . . . Machines Sabotaged . | . . . . . Overloaded Fab Kills . | . . . . . Hacking | -11 -10 -10 -10 -9 --------- Run | Yrd Mat Min Exi Min Machines Accessed 1 | . 1 . . . Terminals 1 | . 1 . . . Fabricators . | . . . . . Repair Stations . | . . . . . Recycling Units . | . . . . . Scanalyzers . | . . . . . Garrison Access . | . . . . . Total Hacks 1 | . 1 . . . Successful 1 | . 1 . . . Failed . | . . . . . Catastrophic . | . . . . . Database Lockouts . | . . . . . Manual 1 | . . . 1 . Terminals 1 | . 1 . . . Fabricators . | . . . . . Repair Stations . | . . . . . Recycling Units . | . . . . . Scanalyzers . | . . . . . Garrison Access . | . . . . . Terminal Hacks 1 | . 1 . . . Alert Level 1 | . 1 . . . Fabricator Hacks . | . . . . . Repair Station Hacks . | . . . . . Recycling Unit Hacks . | . . . . . Scanalyzer . | . . . . . Garrison Access Hacks . | . . . . . Unauthorized Hacks . | . . . . . Terminals . | . . . . . Fabricators . | . . . . . Repair Stations . | . . . . . Recycling Units . | . . . . . Scanalyzers . | . . . . . Garrison Access . | . . . . . Data Cores Recovered . | . . . . . Used . | . . . . . Hacking Detections 1 | . 1 . . . Full Trace Events . | . . . . . Feedback Events . | . . . . . Feedback Blocked . | . . . . . Robot Schematics Acquired . | . . . . . Robots Built . | . . . . . Authchips . | . . . . . Time . | . . . . . Total Robot Build Rating . | . . . . . Part Schematics Acquired . | . . . . . Parts Built . | . . . . . Authchips . | . . . . . Time . | . . . . . Total Part Build Rating . | . . . . . Parts Repaired . | . . . . . Time . | . . . . . Parts Recycled . | . . . . . Recycled Matter . | . . . . . Retrieved Matter . | . . . . . Retrieved Components . | . . . . . Parts Scanalyzed . | . . . . . Part Schematics Acquired . | . . . . . Parts Damaged . | . . . . . Bothacking | -11 -10 -10 -10 -9 ------------ Run | Yrd Mat Min Exi Min Used RIF Installer . | . . . . . Robots Hacked . | . . . . . Non-combat . | . . . . . Combat . | . . . . . Robot Hacks Applied . | . . . . . Relay Couplers Released . | . . . . . Fabnet Peak Effective % . | . . . . . Robots Rewired . | . . . . . Allies Hacked . | . . . . . Hacks Repelled . | . . . . . Allies | -11 -10 -10 -10 -9 -------- Run | Yrd Mat Min Exi Min Total Allies . | . . . . . Largest Group . | . . . . . Highest-Rated Group . | . . . . . Highest-Rated Ally . | . . . . . Total Orders . | . . . . . Ally Attacks . | . . . . . Total Damage . | . . . . . Kills . | . . . . . Allies Corrupted . | . . . . . Allies Melted . | . . . . . Intel | -11 -10 -10 -10 -9 ------- Run | Yrd Mat Min Exi Min Robot Analysis Total . | . . . . . Derelict Logs Recovered 1 | . . 1 . . Drone Launches . | . . . . . Drone Recoveries . | . . . . . Exploration | -11 -10 -10 -10 -9 ------------- Run | Yrd Mat Min Exi Min Turns Passed 2274 | 60 867 445 776 126 Spaces Moved 982 | 39 377 194 333 39 Core 14 | 14 . . . . Treads 250 | . 250 . . . Legs 718 | 25 127 194 333 39 Wheels . | . . . . . Hover . | . . . . . Flight . | . . . . . Fastest Speed 50 | 50 120 190 190 260 Average Speed 194 | 116 165 190 230 260 Slowest Speed 260 | 190 240 190 260 260 Overloaded Moves . | . . . . . Propulsion Burnouts . | . . . . . Robots Hopped . | . . . . . Cave-ins Triggered . | . . . . . Exploration Rate (%) 34 | 4 45 63 53 9 Regions Visited 4 Branch Regions 3 Pre-discovered Areas . | . . . . . Known Exits Taken . | . . . . . Unknown Exits Taken 4 | 1 1 1 1 . Scrap Searched 1 | . . . . 1 Spaces Dug . | . . . . . Terrain Destroyed 22 | . . . . 22 Melee . | . . . . . Projectile 1 | . . . . 1 AOE 21 | . . . . 21 Terrain Rammed . | . . . . . Walls Destroyed . | . . . . . Machines Disabled . | . . . . . Actions | -11 -10 -10 -10 -9 --------- Run | Yrd Mat Min Exi Min Total 1266 | 50 551 260 344 61 Wait 157 | . 111 25 . 21 Move 978 | 38 376 193 332 39 Hop . | . . . . . Pick Up 30 | 6 12 9 3 . Fast Attach 7 | 6 . . 1 . Attach 8 | . 5 1 2 . Detach 2 | . 2 . . . Swap 18 | . 7 10 1 . Drop 20 | . 1 14 5 . Fire 46 | . 37 8 . 1 Melee . | . . . . . Ram . | . . . . . Kick . | . . . . . Crush . | . . . . . Escape Stasis . | . . . . . Rewire . | . . . . . Trap . | . . . . . Miscellaneous . | . . . . . Route ------- -11/Scrapyard -10/Materials (discovered 2 exits: [*Mat] / [*Min]) -10/Mines -10/Exiles -9/Mines History --------- Turn | Location | Event 18 | -11/Scrapyard | Discovered new exit (range 14) 61 | -11/Scrapyard | Entered Materials 312 | -10/Materials | Build established: Mutant 709 | -10/Materials | Core integrity fell below 50% 749 | -10/Materials | Lost 3 parts (1p2n) 785 | -10/Materials | Discovered new exit (range 12) 808 | -10/Materials | Discovered new exit (range 7) 928 | -10/Materials | Entered Mines 937 | -10/Mines | Met a Derelict bent on vengeance 1181 | -10/Mines | Joined a pair of Derelicts in attacking an 0b10 outpost 1194 | -10/Mines | Learned Materials non-interactive machine intel 1296 | -10/Mines | Found a damaged Exp. Sensor Array with a note attached 1301 | -10/Mines | Found Prototype Device 1302 | -10/Mines | Identified Exp. Sensor Array 1362 | -10/Mines | Deemed a non-threat by the Exiles lab entrance 1362 | -10/Mines | Discovered new exit (range 5) 1373 | -10/Mines | Entered Exiles 1417 | -10/Exiles | Met 8R-AWN 1451 | -10/Exiles | Met EX-HEX 1552 | -10/Exiles | Met EX-BIN 1575 | -10/Exiles | Aligned with FarCom system 1577 | -10/Exiles | Given EX-Vault access code 1622 | -10/Exiles | Opened EX-Vault 1634 | -10/Exiles | Found Prototype Energy Cannon 1636 | -10/Exiles | Identified YOLO Cannon 1643 | -10/Exiles | Found Prototype Leg 1644 | -10/Exiles | Identified Potential Leg 1677 | -10/Exiles | Build established: Scavenger-Mutant 1715 | -10/Exiles | Warned to stay clear of 0b10 Research branches 1892 | -10/Exiles | Met EX-DEC 2118 | -10/Exiles | Discovered new exit (range 14) 2149 | -10/Exiles | Left Exiles lab with YOLO Cannon 2149 | -10/Exiles | Entered Mines 2257 | -9/Mines | Assembled infested the area 2267 | -9/Mines | Core integrity fell below 20% 2275 | -9/Mines | Destroyed by D-53 Grenadier with Mini Grenade Launcher Last Messages --------------- J9-FF8(z): Why did DEC have to put these flashy spikey things everywhere, they really get in the way, you know? 02118_ EXIT=FOUND LOCATION=UNKNOWN GOAL=ESCAPE 02149_ Receiving FarCom transmissions... 02162_ Searching scrap... 02162_ Found Particle Gun. 02162_ Found VTOL Module. 02162_ Found 14 Matter. 02163_ Acquired 14 matter. 02172_ System corrupted: Component data lost. 02223_ System corrupted: Matter fused (-10). 02257_ ALERT: Infestation in the mines, dispatching Demolisher response squad. 02260_ C-30 ARC bursts open, deploying its payload. 02260_ D-53 Grenadier unfolds itself. 02266_ R-06 Scavenger destroyed. 02267_ The unstable cave ceiling collapses. 02274_ Lgt. Nuclear Core destroyed. Map ----- +----------------------------------------------------+ | ?????????????????????????????????????????????????? | | ?????????????????????????????????????????????????? | | ?????????????????????????????????????????????????? | | ?????????????????????????????????????????????????? | | ?????????????????????????????????????????????????? | | ?????????????????????????????????????????????????? | | ?????????????????????????????????????????????????? | | ?????????????????????????????????????????????????? | | ?????????????????????????????????????????????????? | | ?????????????????????????????????????????????????? | | ?????????????????????????????????????????????????? | | ?????????????????????????????????????????????????? | | ?????????????????????????????????????????????????? | | ?????????????????????????????????????????????????? | | ?????????????????????????????????????????????????? | | ?????????????????????????????????????????????????? | | ?????????????????????????????????????????????????? | | ???????????????????????????????????????? ????????? | | ?????????????????????#??#########??#?? ""????????? | | ?????????????????????# ## # # ## #;;; #??????? | | ?????????????????????# # # % ???????? | | ?????????????????????# ;; ?????????? | | ?????????????????????## dd #????????????? | | ?????????????????????# #????????????? | | ?????????????????????## #????????????? | | ?????????????????????# @ # #???????????? | | ?????????????????????# ## #??????????? | | ?????????????????????# ##????? #?????????? | | ?????????????????????#### ##????????????????? | | ????????????????????????# ##???????????????? | | ????????????????????????# ### #???????????????? | | ????????????????????????# ### #???????????????? | | ????????????????????????# ## #???????????????? | | ???????????????????????##[= ##???????????????? | | ??????????????????????## ##????????????????? | | ????????????????????### ##?????????????????? | | ???????????????????## #####??????????????????? | | ???????????????????# ##??????????????????????? | | ???????????????????# #???????????????????????? | | ???????????????????# #???????????????????????? | | ???????????????????## ##???????????????????????? | | ????????????????????#####????????????????????????? | | ?????????????????????????????????????????????????? | | | | | | | | | | | | | | | +----------------------------------------------------+ Best States ------------- Heat Dissipation 39 Energy Generation 14 Energy Capacity 450 Matter Stores 300 Matter Capacity 300 Sight Range 16 Robot Scan Range 20 Terrain Scan Density 10 Evasion (%) 50 Recoil Reduction 2 Item Schematics ----------------- None Robot Schematics ------------------ None Fabricated ------------ Nothing Alien Tech Used ----------------- None Achievements -------------- None Challenges ------------ None Game ------ Seed SalvageMyomerMace Manual? 0 Play Time 00:23:18 Cumulative 34.0 hours Start 2024.04.03 @ 22:17:39 End 2024.04.03 @ 22:41:04 Sessions 1 Manual Loads 0 Difficulty Rogue Special Mode None Game No. 28 Rogue 28 Adventurer 0 Explorer 0 Win Type - Total 0 Types 0/0/0/0/0/0/0/0/0 Lore% 18 Gallery% 30 Achievement% 21 Wizard Run 0 Options --------- Layout 0 ASCII 0 Keyboard 0 Movement Mouse Keybinds 0 Fullscreen 1 Font 24/X11 Map View 76x50 Zoom Use 0% Tactical HUD 1 Map Filters NONE Filters NONE Steam 1 RUN: 0e5d5766-64f5-4786-9e9e-f430ad31e6c9